[Event "January 9 Early 2024"]
[Site "https://www.chess.com"]
[Date "2024.01.11"]
[Round "8"]
[White "Lysyj, Igor"]
[Black "Cristobal, Manuel"]
[Result "1-0"]
[Board "225"]
[TimeControl "180+1"]
[WhiteFideId "4150120"]
[BlackFideId "112879"]
[WhiteElo "2852"]
[BlackElo "2703"]
[WhiteTeam "FID"]
[BlackTeam "ARG"]
[WhiteClock "0:00:16"]
[BlackClock "0:00:03"]

1. d4 {[%clk 0:03:00]}  Nc6 {[%clk 0:02:59]} 2. Nf3 {[%clk 0:02:59]}  d5 {[%clk 0:02:57]} 3. c4 {[%clk 0:02:58]}  Bg4 {[%clk 0:02:57]} 4. Bg5 {[%clk 0:02:58]}  f6 {[%clk 0:02:56]} 5. Nc3 {[%clk 0:02:56]}  fxg5 {[%clk 0:02:50]} 6. cxd5 {[%clk 0:02:54]}  Nb8 {[%clk 0:02:44]} 7. Ne5 {[%clk 0:02:51]}  Bd7 {[%clk 0:02:38]} 8. Qb3 {[%clk 0:02:42]}  Qc8 {[%clk 0:02:26]} 9. g3 {[%clk 0:02:27]}  Nf6 {[%clk 0:02:25]} 10. Bg2 {[%clk 0:02:27]}  a5 {[%clk 0:02:12]} 11. O-O {[%clk 0:02:12]}  a4 {[%clk 0:02:05]} 12. Qc2 {[%clk 0:02:11]}  Na6 {[%clk 0:01:59]} 13. a3 {[%clk 0:02:07]}  g6 {[%clk 0:01:53]} 14. Nxa4 {[%clk 0:02:03]}  Bg7 {[%clk 0:01:46]} 15. Qb3 {[%clk 0:01:47]}  O-O {[%clk 0:01:16]} 16. Nxd7 {[%clk 0:01:40]}  Qxd7 {[%clk 0:01:08]} 17. d6+ {[%clk 0:01:40]}  e6 {[%clk 0:01:08]} 18. dxc7 {[%clk 0:01:36]}  Nxc7 {[%clk 0:01:05]} 19. Nb6 {[%clk 0:01:34]}  Qb5 {[%clk 0:00:54]} 20. Qxb5 {[%clk 0:01:33]}  Nxb5 {[%clk 0:00:55]} 21. Nxa8 {[%clk 0:01:33]}  Rxa8 {[%clk 0:00:56]} 22. e3 {[%clk 0:01:33]}  Nd6 {[%clk 0:00:39]} 23. Rac1 {[%clk 0:01:30]}  Ra6 {[%clk 0:00:36]} 24. Rc2 {[%clk 0:01:12]}  Nd5 {[%clk 0:00:24]} 25. Rfc1 {[%clk 0:01:08]}  Kf7 {[%clk 0:00:18]} 26. Rc5 {[%clk 0:01:03]}  Ne7 {[%clk 0:00:13]} 27. Rc7 {[%clk 0:01:01]}  Rb6 {[%clk 0:00:14]} 28. R1c2 {[%clk 0:01:01]}  Ne8 {[%clk 0:00:14]} 29. Rxb7 {[%clk 0:01:01]}  Rxb7 {[%clk 0:00:11]} 30. Bxb7 {[%clk 0:01:00]}  Nd6 {[%clk 0:00:12]} 31. Bf3 {[%clk 0:00:58]}  e5 {[%clk 0:00:12]} 32. dxe5 {[%clk 0:00:55]}  Bxe5 {[%clk 0:00:13]} 33. a4 {[%clk 0:00:54]}  h5 {[%clk 0:00:10]} 34. a5 {[%clk 0:00:52]}  g4 {[%clk 0:00:11]} 35. Bg2 {[%clk 0:00:51]}  Nb5 {[%clk 0:00:08]} 36. a6 {[%clk 0:00:47]}  Na7 {[%clk 0:00:08]} 37. b4 {[%clk 0:00:36]}  Ke6 {[%clk 0:00:07]} 38. Bf1 {[%clk 0:00:35]}  Kd7 {[%clk 0:00:05]} 39. b5 {[%clk 0:00:35]}  Bc7 {[%clk 0:00:05]} 40. Bd3 {[%clk 0:00:33]}  Bb6 {[%clk 0:00:04]} 41. Rb2 {[%clk 0:00:31]}  Kd6 {[%clk 0:00:03]} 42. Rb4 {[%clk 0:00:31]}  Kc5 {[%clk 0:00:03]} 43. Re4 {[%clk 0:00:30]}  Nf5 {[%clk 0:00:03]} 44. Re6 {[%clk 0:00:29]}  Nxb5 {[%clk 0:00:02]} 45. Bxb5 {[%clk 0:00:29]}  Kxb5 {[%clk 0:00:03]} 46. Rxg6 {[%clk 0:00:29]}  Kxa6 {[%clk 0:00:03]} 47. Rg5 {[%clk 0:00:29]}  Ne7 {[%clk 0:00:02]} 48. Rxh5 {[%clk 0:00:29]}  Kb7 {[%clk 0:00:02]} 49. Rg5 {[%clk 0:00:29]}  Kc7 {[%clk 0:00:03]} 50. Rxg4 {[%clk 0:00:29]}  Bc5 {[%clk 0:00:03]} 51. Rc4 {[%clk 0:00:29]}  Kd6 {[%clk 0:00:04]} 52. Kg2 {[%clk 0:00:29]}  Kd5 {[%clk 0:00:04]} 53. Rc2 {[%clk 0:00:29]}  Bd6 {[%clk 0:00:05]} 54. h4 {[%clk 0:00:28]}  Ke6 {[%clk 0:00:06]} 55. Ra2 {[%clk 0:00:28]}  Nf5 {[%clk 0:00:06]} 56. Ra5 {[%clk 0:00:27]}  Bc7 {[%clk 0:00:05]} 57. Rb5 {[%clk 0:00:26]}  Nd6 {[%clk 0:00:05]} 58. Rb3 {[%clk 0:00:25]}  Bd8 {[%clk 0:00:05]} 59. h5 {[%clk 0:00:24]}  Nf5 {[%clk 0:00:04]} 60. g4 {[%clk 0:00:24]}  Nh6 {[%clk 0:00:04]} 61. Kg3 {[%clk 0:00:23]}  Bc7+ {[%clk 0:00:04]} 62. f4 {[%clk 0:00:24]}  Nf7 {[%clk 0:00:04]} 63. Ra3 {[%clk 0:00:22]}  Bd6 {[%clk 0:00:04]} 64. Ra6 {[%clk 0:00:22]}  Ke7 {[%clk 0:00:04]} 65. Kf3 {[%clk 0:00:22]}  Nd8 {[%clk 0:00:05]} 66. g5 {[%clk 0:00:22]}  Ne6 {[%clk 0:00:05]} 67. h6 {[%clk 0:00:21]}  Nf8 {[%clk 0:00:03]} 68. Ra7+ {[%clk 0:00:19]}  Ke6 {[%clk 0:00:03]} 69. h7 {[%clk 0:00:19]}  Ng6 {[%clk 0:00:04]} 70. Kg4 {[%clk 0:00:17]}  Be7 {[%clk 0:00:03]} 71. f5+ {[%clk 0:00:16]} 1-0

[Event "January 9 Early 2024"]
[Site "https://www.chess.com"]
[Date "2024.01.11"]
[Round "8"]
[White "Cruz, William Ferreira Da"]
[Black "Caspi, Israel"]
[Result "0-1"]
[Board "226"]
[TimeControl "180+1"]
[WhiteFideId "2118050"]
[BlackFideId "2807394"]
[WhiteElo "2343"]
[BlackElo "2634"]
[WhiteTeam "BRA"]
[BlackTeam "ISR"]
[WhiteClock "0:00:06"]
[BlackClock "0:00:07"]

1. d4 {[%clk 0:03:00]}  f5 {[%clk 0:02:59]} 2. g3 {[%clk 0:02:58]}  Nf6 {[%clk 0:02:59]} 3. Bg2 {[%clk 0:02:57]}  g6 {[%clk 0:03:00]} 4. b3 {[%clk 0:02:56]}  Bg7 {[%clk 0:03:00]} 5. Bb2 {[%clk 0:02:57]}  O-O {[%clk 0:03:00]} 6. Nd2 {[%clk 0:02:57]}  c6 {[%clk 0:03:00]} 7. c4 {[%clk 0:02:56]}  d5 {[%clk 0:03:00]} 8. Ngf3 {[%clk 0:02:53]}  Ne4 {[%clk 0:03:00]} 9. O-O {[%clk 0:02:49]}  Be6 {[%clk 0:03:00]} 10. Qc2 {[%clk 0:02:35]}  a5 {[%clk 0:03:01]} 11. Rad1 {[%clk 0:02:25]}  a4 {[%clk 0:03:00]} 12. Ne5 {[%clk 0:02:21]}  Qa5 {[%clk 0:02:57]} 13. f3 {[%clk 0:02:18]}  Nxd2 {[%clk 0:02:47]} 14. Qxd2 {[%clk 0:02:18]}  Qxd2 {[%clk 0:02:39]} 15. Rxd2 {[%clk 0:02:18]}  Bxe5 {[%clk 0:02:40]} 16. cxd5 {[%clk 0:02:09]}  Bxd5 {[%clk 0:02:39]} 17. dxe5 {[%clk 0:02:08]}  axb3 {[%clk 0:02:40]} 18. axb3 {[%clk 0:02:04]}  Bxb3 {[%clk 0:02:40]} 19. e4 {[%clk 0:01:48]}  fxe4 {[%clk 0:02:26]} 20. fxe4 {[%clk 0:01:48]}  Rxf1+ {[%clk 0:01:57]} 21. Bxf1 {[%clk 0:01:47]}  Na6 {[%clk 0:01:32]} 22. Rd7 {[%clk 0:01:46]}  Nc5 {[%clk 0:01:28]} 23. Rxe7 {[%clk 0:01:42]}  b5 {[%clk 0:01:25]} 24. e6 {[%clk 0:01:35]}  Nxe6 {[%clk 0:01:23]} 25. Bh3 {[%clk 0:01:33]}  Ra2 {[%clk 0:01:13]} 26. Bf6 {[%clk 0:01:29]}  Nc5 {[%clk 0:00:54]} 27. Bd4 {[%clk 0:00:51]}  Rc2 {[%clk 0:00:39]} 28. e5 {[%clk 0:00:40]}  Bd5 {[%clk 0:00:32]} 29. e6 {[%clk 0:00:33]}  Kf8 {[%clk 0:00:30]} 30. Rf7+ {[%clk 0:00:30]}  Ke8 {[%clk 0:00:30]} 31. Bxc5 {[%clk 0:00:20]}  Rxc5 {[%clk 0:00:26]} 32. Rxh7 {[%clk 0:00:21]}  b4 {[%clk 0:00:21]} 33. Rh8+ {[%clk 0:00:21]}  Ke7 {[%clk 0:00:20]} 34. Rh7+ {[%clk 0:00:21]}  Ke8 {[%clk 0:00:18]} 35. Rh8+ {[%clk 0:00:21]}  Ke7 {[%clk 0:00:18]} 36. Rh7+ {[%clk 0:00:21]}  Kf8 {[%clk 0:00:17]} 37. Rh8+ {[%clk 0:00:20]}  Kg7 {[%clk 0:00:16]} 38. e7 {[%clk 0:00:20]}  Bf7 {[%clk 0:00:14]} 39. Rf8 {[%clk 0:00:19]}  Re5 {[%clk 0:00:13]} 40. Rc8 {[%clk 0:00:10]}  c5 {[%clk 0:00:12]} 41. Bf1 {[%clk 0:00:07]}  b3 {[%clk 0:00:12]} 42. Rb8 {[%clk 0:00:06]}  c4 {[%clk 0:00:11]} 43. e8=Q {[%clk 0:00:06]}  Rxe8 {[%clk 0:00:10]} 44. Rxe8 {[%clk 0:00:05]}  Bxe8 {[%clk 0:00:10]} 45. Bxc4 {[%clk 0:00:06]}  b2 {[%clk 0:00:11]} 46. Ba2 {[%clk 0:00:05]}  g5 {[%clk 0:00:11]} 47. Kf2 {[%clk 0:00:04]}  Kf6 {[%clk 0:00:10]} 48. Kf3 {[%clk 0:00:05]}  Bd7 {[%clk 0:00:10]} 49. g4 {[%clk 0:00:04]}  Be6 {[%clk 0:00:07]} 50. Bb1 {[%clk 0:00:04]}  Bf7 {[%clk 0:00:07]} 51. Kg3 {[%clk 0:00:04]}  Bg6 {[%clk 0:00:07]} 52. Ba2 {[%clk 0:00:04]}  Ke5 {[%clk 0:00:05]} 53. h4 {[%clk 0:00:04]}  gxh4+ {[%clk 0:00:05]} 54. Kxh4 {[%clk 0:00:04]}  Kf4 {[%clk 0:00:06]} 55. g5 {[%clk 0:00:04]}  Kf3 {[%clk 0:00:03]} 56. Kh3 {[%clk 0:00:05]}  Kf4 {[%clk 0:00:03]} 57. Kg2 {[%clk 0:00:05]}  Kxg5 {[%clk 0:00:04]} 58. Kf2 {[%clk 0:00:05]}  Kf4 {[%clk 0:00:04]} 59. Ke2 {[%clk 0:00:05]}  Ke4 {[%clk 0:00:04]} 60. Kd2 {[%clk 0:00:05]}  Kd4 {[%clk 0:00:05]} 61. Kd1 {[%clk 0:00:05]}  Bd3 {[%clk 0:00:05]} 62. Kd2 {[%clk 0:00:06]}  Be4 {[%clk 0:00:05]} 63. Kd1 {[%clk 0:00:06]}  Kc3 {[%clk 0:00:06]} 64. Ke1 {[%clk 0:00:06]}  Bc2 {[%clk 0:00:06]} 65. Ke2 {[%clk 0:00:06]}  Kb4 {[%clk 0:00:06]} 66. Kd2 {[%clk 0:00:06]}  Ka3 {[%clk 0:00:07]} 0-1

[Event "January 9 Early 2024"]
[Site "https://www.chess.com"]
[Date "2024.01.11"]
[Round "8"]
[White "Cori T., Deysi"]
[Black "Nord, Alexander"]
[Result "1/2-1/2"]
[Board "229"]
[TimeControl "180+1"]
[WhiteFideId "3801934"]
[BlackFideId "1738135"]
[WhiteElo "2552"]
[BlackElo "2347"]
[WhiteTeam "PER"]
[BlackTeam "SWE"]
[WhiteClock "0:00:01"]
[BlackClock "0:00:04"]

1. d4 {[%clk 0:03:00]}  Nf6 {[%clk 0:02:57]} 2. Nf3 {[%clk 0:02:59]}  e6 {[%clk 0:02:56]} 3. c4 {[%clk 0:02:59]}  b6 {[%clk 0:02:56]} 4. g3 {[%clk 0:02:59]}  Bb7 {[%clk 0:02:56]} 5. Bg2 {[%clk 0:02:59]}  Be7 {[%clk 0:02:56]} 6. O-O {[%clk 0:03:00]}  O-O {[%clk 0:02:56]} 7. Nc3 {[%clk 0:03:00]}  Ne4 {[%clk 0:02:57]} 8. Qc2 {[%clk 0:02:59]}  Nxc3 {[%clk 0:02:55]} 9. Qxc3 {[%clk 0:03:00]}  d6 {[%clk 0:02:55]} 10. Rd1 {[%clk 0:02:59]}  Nd7 {[%clk 0:02:48]} 11. b4 {[%clk 0:02:56]}  Bf6 {[%clk 0:02:43]} 12. Bb2 {[%clk 0:02:55]}  c5 {[%clk 0:02:35]} 13. bxc5 {[%clk 0:02:53]}  bxc5 {[%clk 0:02:33]} 14. e3 {[%clk 0:02:54]}  Qc7 {[%clk 0:02:22]} 15. Rac1 {[%clk 0:02:50]}  Rab8 {[%clk 0:02:03]} 16. Qd2 {[%clk 0:02:47]}  Be4 {[%clk 0:02:00]} 17. Bc3 {[%clk 0:02:39]}  cxd4 {[%clk 0:01:40]} 18. Bxd4 {[%clk 0:02:33]}  Bxd4 {[%clk 0:01:36]} 19. Qxd4 {[%clk 0:02:33]}  Bxf3 {[%clk 0:01:16]} 20. Bxf3 {[%clk 0:02:29]}  Rb6 {[%clk 0:01:17]} 21. h4 {[%clk 0:02:17]}  Rc8 {[%clk 0:01:14]} 22. Rc2 {[%clk 0:02:14]}  Ne5 {[%clk 0:01:10]} 23. Bg2 {[%clk 0:02:10]}  h6 {[%clk 0:01:06]} 24. Rdc1 {[%clk 0:00:26]}  Qc5 {[%clk 0:01:05]} 25. Be4 {[%clk 0:00:20]}  Kf8 {[%clk 0:00:58]} 26. Qd2 {[%clk 0:00:19]}  Rc7 {[%clk 0:00:54]} 27. Kg2 {[%clk 0:00:19]}  Rb4 {[%clk 0:00:53]} 28. f4 {[%clk 0:00:16]}  Nxc4 {[%clk 0:00:45]} 29. Rxc4 {[%clk 0:00:16]}  Rxc4 {[%clk 0:00:44]} 30. Rxc4 {[%clk 0:00:16]}  Qxc4 {[%clk 0:00:44]} 31. Qxd6+ {[%clk 0:00:17]}  Ke8 {[%clk 0:00:43]} 32. Bf3 {[%clk 0:00:17]}  a5 {[%clk 0:00:36]} 33. Qe5 {[%clk 0:00:15]}  Kf8 {[%clk 0:00:34]} 34. Qxa5 {[%clk 0:00:13]}  g6 {[%clk 0:00:25]} 35. h5 {[%clk 0:00:13]}  gxh5 {[%clk 0:00:22]} 36. Bxh5 {[%clk 0:00:12]}  Qc2+ {[%clk 0:00:20]} 37. Kh3 {[%clk 0:00:11]}  Qc5 {[%clk 0:00:19]} 38. Qxc5+ {[%clk 0:00:10]}  Rxc5 {[%clk 0:00:20]} 39. Bd1 {[%clk 0:00:10]}  Rc3 {[%clk 0:00:19]} 40. e4 {[%clk 0:00:10]}  Re3 {[%clk 0:00:15]} 41. e5 {[%clk 0:00:10]}  Rd3 {[%clk 0:00:15]} 42. Bb3 {[%clk 0:00:10]}  Rd2 {[%clk 0:00:15]} 43. Kg4 {[%clk 0:00:10]}  Kg7 {[%clk 0:00:14]} 44. Bc4 {[%clk 0:00:10]}  Rb2 {[%clk 0:00:14]} 45. a4 {[%clk 0:00:09]}  Rb1 {[%clk 0:00:13]} 46. a5 {[%clk 0:00:09]}  Ra1 {[%clk 0:00:14]} 47. a6 {[%clk 0:00:09]}  Kf8 {[%clk 0:00:13]} 48. Kh5 {[%clk 0:00:09]}  Kg7 {[%clk 0:00:14]} 49. Kg4 {[%clk 0:00:09]}  Kf8 {[%clk 0:00:14]} 50. Bd3 {[%clk 0:00:09]}  Ra3 {[%clk 0:00:13]} 51. Be2 {[%clk 0:00:08]}  Kg7 {[%clk 0:00:13]} 52. Kh4 {[%clk 0:00:08]}  Kg6 {[%clk 0:00:12]} 53. Bh5+ {[%clk 0:00:07]}  Kf5 {[%clk 0:00:12]} 54. Bxf7 {[%clk 0:00:06]}  Rxa6 {[%clk 0:00:09]} 55. Kh5 {[%clk 0:00:06]}  Ra1 {[%clk 0:00:08]} 56. Kxh6 {[%clk 0:00:05]}  Rh1+ {[%clk 0:00:04]} 57. Kg7 {[%clk 0:00:05]}  Rg1 {[%clk 0:00:05]} 58. Bg6+ {[%clk 0:00:04]}  Kg4 {[%clk 0:00:05]} 59. Kf6 {[%clk 0:00:03]}  Kxg3 {[%clk 0:00:04]} 60. f5 {[%clk 0:00:02]}  exf5 {[%clk 0:00:04]} 61. Bxf5 {[%clk 0:00:03]}  Re1 {[%clk 0:00:04]} 62. e6 {[%clk 0:00:02]}  Rxe6+ {[%clk 0:00:04]} 63. Kxe6 {[%clk 0:00:01]} 1/2-1/2

[Event "January 9 Early 2024"]
[Site "https://www.chess.com"]
[Date "2024.01.11"]
[Round "8"]
[White "Drygalov, Sergey"]
[Black "Kobalia, Mikhail"]
[Result "1/2-1/2"]
[Board "230"]
[TimeControl "180+1"]
[WhiteFideId "24171743"]
[BlackFideId "4119150"]
[WhiteElo "2945"]
[BlackElo "2804"]
[WhiteTeam "RUS"]
[BlackTeam "FID"]
[WhiteClock "0:00:04"]
[BlackClock "0:00:06"]

1. d4 {[%clk 0:03:00]}  d5 {[%clk 0:02:59]} 2. c4 {[%clk 0:03:01]}  c6 {[%clk 0:02:59]} 3. Nf3 {[%clk 0:03:01]}  Nf6 {[%clk 0:02:59]} 4. Nc3 {[%clk 0:03:02]}  e6 {[%clk 0:02:59]} 5. e3 {[%clk 0:03:01]}  a6 {[%clk 0:02:59]} 6. Bd3 {[%clk 0:02:50]}  dxc4 {[%clk 0:02:58]} 7. Bxc4 {[%clk 0:02:51]}  b5 {[%clk 0:02:58]} 8. Bd3 {[%clk 0:02:50]}  c5 {[%clk 0:02:59]} 9. a4 {[%clk 0:02:46]}  b4 {[%clk 0:02:57]} 10. Ne4 {[%clk 0:02:47]}  Nbd7 {[%clk 0:02:58]} 11. a5 {[%clk 0:02:43]}  Bb7 {[%clk 0:02:47]} 12. Nxf6+ {[%clk 0:02:43]}  Qxf6 {[%clk 0:02:47]} 13. e4 {[%clk 0:02:38]}  cxd4 {[%clk 0:02:44]} 14. Bg5 {[%clk 0:02:37]}  Qg6 {[%clk 0:02:44]} 15. Qa4 {[%clk 0:02:34]}  Bd6 {[%clk 0:02:29]} 16. O-O {[%clk 0:02:27]}  e5 {[%clk 0:02:28]} 17. Rac1 {[%clk 0:02:20]}  Bxe4 {[%clk 0:01:24]} 18. Bxe4 {[%clk 0:02:21]}  Qxe4 {[%clk 0:01:23]} 19. Nxd4 {[%clk 0:02:12]}  Qg4 {[%clk 0:01:11]} 20. Qc6 {[%clk 0:01:49]}  O-O {[%clk 0:01:10]} 21. Qxd6 {[%clk 0:01:41]}  exd4 {[%clk 0:00:57]} 22. Bd2 {[%clk 0:01:38]}  Nf6 {[%clk 0:00:56]} 23. h3 {[%clk 0:01:30]}  Qf5 {[%clk 0:00:55]} 24. Qxd4 {[%clk 0:01:16]}  Rfd8 {[%clk 0:00:54]} 25. Qxb4 {[%clk 0:01:08]}  Rab8 {[%clk 0:00:53]} 26. Qf4 {[%clk 0:01:07]}  Qxf4 {[%clk 0:00:51]} 27. Bxf4 {[%clk 0:01:08]}  Rxb2 {[%clk 0:00:51]} 28. Rc6 {[%clk 0:01:08]}  Ra2 {[%clk 0:00:40]} 29. Rxa6 {[%clk 0:01:06]}  h6 {[%clk 0:00:36]} 30. Re1 {[%clk 0:00:50]}  Rd5 {[%clk 0:00:35]} 31. Ra8+ {[%clk 0:00:39]}  Kh7 {[%clk 0:00:34]} 32. Bc7 {[%clk 0:00:38]}  Rdd2 {[%clk 0:00:30]} 33. Bb6 {[%clk 0:00:36]}  Nd5 {[%clk 0:00:30]} 34. Bc5 {[%clk 0:00:36]}  Rac2 {[%clk 0:00:23]} 35. Rc8 {[%clk 0:00:22]}  Rc4 {[%clk 0:00:23]} 36. a6 {[%clk 0:00:20]}  Ra2 {[%clk 0:00:23]} 37. a7 {[%clk 0:00:19]}  Rxa7 {[%clk 0:00:22]} 38. Bxa7 {[%clk 0:00:19]}  Rxc8 {[%clk 0:00:21]} 39. Rd1 {[%clk 0:00:20]}  Nf6 {[%clk 0:00:21]} 40. Be3 {[%clk 0:00:19]}  Kg6 {[%clk 0:00:21]} 41. Rd6 {[%clk 0:00:19]}  Kf5 {[%clk 0:00:19]} 42. Bd4 {[%clk 0:00:17]}  Ne4 {[%clk 0:00:16]} 43. Ra6 {[%clk 0:00:14]}  f6 {[%clk 0:00:13]} 44. Kh2 {[%clk 0:00:09]}  Ng5 {[%clk 0:00:13]} 45. Be3 {[%clk 0:00:08]}  Kg6 {[%clk 0:00:12]} 46. h4 {[%clk 0:00:07]}  Nf7 {[%clk 0:00:11]} 47. g4 {[%clk 0:00:07]}  h5 {[%clk 0:00:11]} 48. gxh5+ {[%clk 0:00:07]}  Kxh5 {[%clk 0:00:10]} 49. Kg3 {[%clk 0:00:07]}  Nh6 {[%clk 0:00:09]} 50. Ra5+ {[%clk 0:00:08]}  Kg6 {[%clk 0:00:09]} 51. h5+ {[%clk 0:00:08]}  Kh7 {[%clk 0:00:09]} 52. Bf4 {[%clk 0:00:05]}  Rc3+ {[%clk 0:00:09]} 53. Be3 {[%clk 0:00:06]}  Rc4 {[%clk 0:00:09]} 54. Bf4 {[%clk 0:00:06]}  Rd4 {[%clk 0:00:09]} 55. Be3 {[%clk 0:00:05]}  Rb4 {[%clk 0:00:10]} 56. Bf4 {[%clk 0:00:05]}  Re4 {[%clk 0:00:09]} 57. Be3 {[%clk 0:00:05]}  Rc4 {[%clk 0:00:09]} 58. Bf4 {[%clk 0:00:06]}  Rb4 {[%clk 0:00:09]} 59. Be3 {[%clk 0:00:06]}  Rb1 {[%clk 0:00:08]} 60. Kg2 {[%clk 0:00:05]}  Ng4 {[%clk 0:00:06]} 61. Bf4 {[%clk 0:00:04]}  Rb2 {[%clk 0:00:06]} 62. Bg3 {[%clk 0:00:05]}  Nh6 {[%clk 0:00:06]} 63. Bf4 {[%clk 0:00:05]}  Rc2 {[%clk 0:00:06]} 64. Kf3 {[%clk 0:00:04]}  Rc3+ {[%clk 0:00:06]} 65. Be3 {[%clk 0:00:03]}  Rc4 {[%clk 0:00:06]} 66. Bf4 {[%clk 0:00:03]}  Rb4 {[%clk 0:00:06]} 67. Kg3 {[%clk 0:00:02]}  Rb3+ {[%clk 0:00:06]} 68. Be3 {[%clk 0:00:03]}  Rc3 {[%clk 0:00:06]} 69. Kf3 {[%clk 0:00:03]}  Rc4 {[%clk 0:00:06]} 70. Bf4 {[%clk 0:00:03]}  Rc3+ {[%clk 0:00:06]} 71. Be3 {[%clk 0:00:04]} 1/2-1/2

[Event "January 9 Early 2024"]
[Site "https://www.chess.com"]
[Date "2024.01.11"]
[Round "8"]
[White "Garbarino, Rodolfo"]
[Black "Parpiev, Isaak"]
[Result "1-0"]
[Board "234"]
[TimeControl "180+1"]
[WhiteFideId "100412"]
[BlackFideId "34281576"]
[WhiteElo "2380"]
[BlackElo "2635"]
[WhiteTeam "ARG"]
[BlackTeam "RUS"]
[WhiteClock "0:00:09"]
[BlackClock "0:00:05"]

1. e4 {[%clk 0:02:58]}  e5 {[%clk 0:02:55]} 2. Nc3 {[%clk 0:02:58]}  Nc6 {[%clk 0:02:54]} 3. Bc4 {[%clk 0:02:58]}  Nf6 {[%clk 0:02:53]} 4. d3 {[%clk 0:02:57]}  Bc5 {[%clk 0:02:51]} 5. f4 {[%clk 0:02:57]}  d6 {[%clk 0:02:47]} 6. Nf3 {[%clk 0:02:57]}  Ng4 {[%clk 0:02:35]} 7. Ng5 {[%clk 0:02:55]}  Rf8 {[%clk 0:01:29]} 8. f5 {[%clk 0:02:34]}  Nf6 {[%clk 0:01:27]} 9. g4 {[%clk 0:02:16]}  h6 {[%clk 0:01:23]} 10. Nxf7 {[%clk 0:01:21]}  Rxf7 {[%clk 0:01:21]} 11. Bxf7+ {[%clk 0:01:21]}  Kxf7 {[%clk 0:01:22]} 12. g5 {[%clk 0:01:15]}  hxg5 {[%clk 0:01:20]} 13. Bxg5 {[%clk 0:01:15]}  Qh8 {[%clk 0:01:20]} 14. Qd2 {[%clk 0:01:11]}  Qh5 {[%clk 0:01:17]} 15. Ne2 {[%clk 0:01:10]}  Nd4 {[%clk 0:01:03]} 16. Nxd4 {[%clk 0:01:09]}  Bxd4 {[%clk 0:01:04]} 17. c3 {[%clk 0:01:09]}  Bb6 {[%clk 0:01:03]} 18. Qg2 {[%clk 0:00:59]}  Ng4 {[%clk 0:00:55]} 19. h4 {[%clk 0:00:59]}  Nf2 {[%clk 0:00:48]} 20. Kd2 {[%clk 0:00:51]}  Nxh1 {[%clk 0:00:47]} 21. Rxh1 {[%clk 0:00:51]}  Bd7 {[%clk 0:00:46]} 22. Rh3 {[%clk 0:00:49]}  Rg8 {[%clk 0:00:45]} 23. Rg3 {[%clk 0:00:49]}  c6 {[%clk 0:00:34]} 24. Rg4 {[%clk 0:00:49]}  a5 {[%clk 0:00:30]} 25. a4 {[%clk 0:00:46]}  Bc7 {[%clk 0:00:26]} 26. Be3 {[%clk 0:00:46]}  Bd8 {[%clk 0:00:25]} 27. Rg6 {[%clk 0:00:43]}  Bf6 {[%clk 0:00:18]} 28. Bg5 {[%clk 0:00:40]}  Bxg5+ {[%clk 0:00:18]} 29. hxg5 {[%clk 0:00:40]}  Rh8 {[%clk 0:00:13]} 30. Rxd6 {[%clk 0:00:38]}  Ke7 {[%clk 0:00:14]} 31. Rg6 {[%clk 0:00:37]}  Rh7 {[%clk 0:00:09]} 32. f6+ {[%clk 0:00:34]}  Kf7 {[%clk 0:00:08]} 33. Rxg7+ {[%clk 0:00:33]}  Rxg7 {[%clk 0:00:09]} 34. fxg7 {[%clk 0:00:33]}  Kxg7 {[%clk 0:00:10]} 35. Qg3 {[%clk 0:00:33]}  Qe8 {[%clk 0:00:10]} 36. Qh4 {[%clk 0:00:32]}  Qg6 {[%clk 0:00:08]} 37. Qg3 {[%clk 0:00:32]}  Qe6 {[%clk 0:00:07]} 38. Qh4 {[%clk 0:00:27]}  Qh3 {[%clk 0:00:06]} 39. Qf2 {[%clk 0:00:24]}  Qe6 {[%clk 0:00:04]} 40. Qb6 {[%clk 0:00:20]}  Bc8 {[%clk 0:00:03]} 41. Qc7+ {[%clk 0:00:20]}  Kg6 {[%clk 0:00:03]} 42. Qd8 {[%clk 0:00:19]}  Qd7 {[%clk 0:00:02]} 43. Qf6+ {[%clk 0:00:18]}  Kh7 {[%clk 0:00:02]} 44. g6+ {[%clk 0:00:18]}  Kh6 {[%clk 0:00:01]} 45. g7+ {[%clk 0:00:17]}  Kh7 {[%clk 0:00:01]} 46. Qf8 {[%clk 0:00:15]}  Qg4 {[%clk 0:00:02]} 47. Kc2 {[%clk 0:00:08]}  Qxg7 {[%clk 0:00:01]} 48. Qxc8 {[%clk 0:00:07]}  Qg2+ {[%clk 0:00:01]} 49. Kb3 {[%clk 0:00:06]}  Qd2 {[%clk 0:00:02]} 50. Qxb7+ {[%clk 0:00:06]}  Kh8 {[%clk 0:00:01]} 51. Qc8+ {[%clk 0:00:06]}  Kh7 {[%clk 0:00:01]} 52. Qd7+ {[%clk 0:00:06]}  Kg8 {[%clk 0:00:01]} 53. Qd8+ {[%clk 0:00:07]}  Kh7 {[%clk 0:00:01]} 54. Qd6 {[%clk 0:00:08]}  Qd1+ {[%clk 0:00:01]} 55. Ka2 {[%clk 0:00:06]}  Qxa4+ {[%clk 0:00:01]} 56. Qa3 {[%clk 0:00:07]}  Qb5 {[%clk 0:00:01]} 57. Qe7+ {[%clk 0:00:07]}  Kg6 {[%clk 0:00:01]} 58. Qe6+ {[%clk 0:00:08]}  Kg7 {[%clk 0:00:01]} 59. Qf5 {[%clk 0:00:08]}  Kg8 {[%clk 0:00:01]} 60. Qg6+ {[%clk 0:00:08]}  Kf8 {[%clk 0:00:02]} 61. Qf6+ {[%clk 0:00:08]}  Kg8 {[%clk 0:00:02]} 62. Qg6+ {[%clk 0:00:08]}  Kf8 {[%clk 0:00:03]} 63. Qd6+ {[%clk 0:00:09]}  Kg8 {[%clk 0:00:03]} 64. d4 {[%clk 0:00:09]}  Qa4+ {[%clk 0:00:03]} 65. Kb1 {[%clk 0:00:09]}  Qd1+ {[%clk 0:00:04]} 66. Ka2 {[%clk 0:00:09]}  Qa4+ {[%clk 0:00:05]} 67. Qa3 {[%clk 0:00:09]}  Qc4+ {[%clk 0:00:06]} 68. Qb3 {[%clk 0:00:09]}  Qxb3+ {[%clk 0:00:05]} 69. Kxb3 {[%clk 0:00:09]}  Kf7 {[%clk 0:00:05]} 70. Ka4 {[%clk 0:00:09]} 1-0